fUST/lending_fUST_20250613
["ID","MTS","AMOUNT","RATE_DAILY","PERIOD"]
[365652487,1749820236887,-460.0,0.00021095,4]
[365652488,1749820236898,-451.56501667,0.00021095,4]
[365652489,1749820236908,-440.0,0.00021095,4]
[365652490,1749820236919,-440.0,0.00021095,4]
[365652491,1749820236928,-440.0,0.00021095,4]
[365652492,1749820236938,-387.51861248,0.00021095,4]
[365652493,1749820236947,-460.0,0.00021095,4]
[365652494,1749820236959,-440.0,0.00021095,4]
[365652495,1749820236969,-440.0,0.00021095,4]
[365652496,1749820236978,-440.0,0.00021095,4]
[365652497,1749820236988,-440.0,0.00021095,4]
[365652498,1749820236997,-178.45805244,0.00021095,4]
[365652499,1749820237006,-440.0,0.00021095,4]
[365652500,1749820237016,-440.0,0.00021095,4]
[365652501,1749820237026,-440.0,0.00021095,4]
[365652502,1749820237035,-440.0,0.00021095,4]
[365652503,1749820237045,-460.0,0.00021095,4]
[365652504,1749820237056,-440.0,0.00021095,4]
[365652505,1749820237065,-440.0,0.00021095,4]
[365652506,1749820237075,-440.0,0.00021095,4]
[365652507,1749820237085,-440.0,0.00021095,4]
[365652508,1749820237095,-440.0,0.00021095,4]
[365652509,1749820237104,-460.0,0.00021095,4]
[365652510,1749820237116,-216.06,0.00021095,4]
[365652511,1749820237125,-294.53065617,0.00021095,4]
[365652512,1749820237135,-460.0,0.00021095,4]
[365652513,1749820237144,-440.0,0.00021095,4]
[365652514,1749820237154,-460.0,0.00021095,4]
[365652515,1749820237164,-438.11409679,0.00021095,4]
[365652516,1749820237174,-579.04,0.00021095,4]
[365652517,1749820237183,-440.0,0.00021095,4]
[365652518,1749820237193,-444.11096599,0.00021095,4]
[365652519,1749820237203,-601.81,0.00021095,4]
[365652520,1749820237212,-440.0,0.00021095,4]
[365652521,1749820237222,-547.81,0.00021095,4]
[365652522,1749820237232,-442.35135296,0.00021095,4]
[365652523,1749820237241,-443.28540431,0.00021095,4]
[365652524,1749820237251,-503.55016483,0.00021095,4]
[365652525,1749820237261,-440.0,0.00021095,4]
[365652526,1749820237271,-440.0,0.00021095,4]
[365652527,1749820237280,-460.0,0.00021095,4]
[365652528,1749820237290,-460.0,0.00021095,4]
[365652529,1749820237300,-440.0,0.00021095,4]
[365652530,1749820237310,-440.0,0.00021095,4]
[365652531,1749820237320,-440.0,0.00021095,4]
[365652532,1749820237330,-440.0,0.00021095,4]
[365652533,1749820237340,-440.0,0.00021095,4]
[365652534,1749820237349,-440.0,0.00021095,4]
[365652535,1749820237359,-440.0,0.00021095,4]
[365652536,1749820237368,-440.0,0.00021095,4]
[365652537,1749820237378,-440.0,0.00021095,4]
[365652538,1749820237389,-440.0,0.00021095,4]
[365652539,1749820237399,-460.0,0.00021095,4]
[365652540,1749820237409,-460.0,0.00021095,4]
[365652541,1749820237419,-2427.65,0.00021095,4]
[365652542,1749820237429,-441.37561226,0.00021095,4]
[365652544,1749820237439,-440.0,0.00021095,4]
[365652546,1749820237449,-440.0,0.00021095,4]
[365652548,1749820237459,-450.46109542,0.00021095,4]
[365652550,1749820237469,-440.0,0.00021095,4]
[365652552,1749820237478,-440.0,0.00021095,4]
[365652554,1749820237488,-432.75679058,0.00021095,4]
[365652556,1749820237498,-440.0,0.00021095,4]
[365652558,1749820237507,-440.0,0.00021095,4]
[365652560,1749820237517,-440.0,0.00021095,4]
[365652562,1749820237527,-440.0,0.00021095,4]
[365652564,1749820237536,-440.0,0.00021095,4]
[365652565,1749820237546,-440.0,0.00021095,4]
[365652567,1749820237555,-440.0,0.00021095,4]
[365652569,1749820237565,-405.78461857,0.00021095,4]
[365652571,1749820237575,-599.64,0.00021095,4]
[365652573,1749820237584,-755.79,0.00021095,4]
[365652575,1749820237593,-440.0,0.00021095,4]
[365652577,1749820237603,-460.0,0.00021095,4]
[365652579,1749820237614,-440.0,0.00021095,4]
[365652581,1749820237624,-430.0,0.00021095,4]
[365652583,1749820237634,-440.0,0.00021095,4]
[365652585,1749820237644,-440.0,0.00021095,4]
[365652587,1749820237654,-445.51768629,0.00021095,4]
[365652589,1749820237663,-460.0,0.00021095,4]
[365652591,1749820237673,-440.0,0.00021095,4]
[365652593,1749820237683,-559.53535596,0.00021095,4]
[365652595,1749820237693,-440.0,0.00021095,4]
[365652597,1749820237703,-440.0,0.00021095,4]
[365652599,1749820237713,-440.0,0.00021095,4]
[365652601,1749820237723,-440.0,0.00021095,4]
[365652603,1749820237732,-560.0,0.00021095,4]
[365652605,1749820237742,-450.1590613,0.00021095,4]
[365652606,1749820237751,-440.0,0.00021095,4]
[365652607,1749820237761,-433.70165519,0.00021095,4]
[365652608,1749820237771,-440.0,0.00021095,4]
[365652609,1749820237780,-210.12187209,0.00021095,4]
[365652610,1749820237789,-440.0,0.00021095,4]
[365652611,1749820237799,-443.30095751,0.00021095,4]
[365652612,1749820237808,-432.71153253,0.00021095,4]
[365652614,1749820237818,-440.0,0.00021095,4]
[365652616,1749820237828,-460.0,0.00021095,4]
[365652618,1749820237838,-422.16168913,0.00021095,4]
[365652620,1749820237848,-460.0,0.00021095,4]
[365652622,1749820237858,-440.0,0.00021095,4]
[365652624,1749820237868,-440.0,0.00021095,4]
[365652625,1749820237879,-440.0,0.00021095,4]
[365652627,1749820237889,-1943.53,0.00021095,4]
[365652629,1749820237898,-969.63,0.00021095,4]
[365652631,1749820237907,-366.92895119,0.00021095,4]
[365652633,1749820237916,-440.0,0.00021095,4]
[365652635,1749820237927,-505.729312,0.00021095,4]
[365652637,1749820237936,-440.0,0.00021095,4]
[365652639,1749820237946,-440.0,0.00021095,4]
[365652641,1749820237959,-460.0,0.00021095,4]
[365652643,1749820237969,-440.0,0.00021095,4]
[365652645,1749820237978,-440.0,0.00021095,4]
[365652647,1749820237987,-913.71,0.00021095,4]
[365652649,1749820237997,-460.0,0.00021095,4]
[365652650,1749820238008,-500.0,0.00021095,4]
[365652651,1749820238018,-500.0,0.00021095,4]
[365652652,1749820238027,-500.0,0.00021095,4]
[365652653,1749820238036,-500.0,0.00021095,4]
[365652654,1749820238046,-500.0,0.00021095,4]
[365652655,1749820238056,-500.0,0.00021095,4]
[365652656,1749820238065,-500.0,0.00021095,4]
[365652657,1749820238075,-500.0,0.00021095,4]
[365652658,1749820238084,-500.0,0.00021095,4]
[365652659,1749820238093,-500.0,0.00021095,4]
[365652660,1749820238103,-440.0,0.00021095,4]
[365652661,1749820238116,-500.0,0.00021095,4]
[365652662,1749820238126,-460.0,0.00021095,4]
[365652663,1749820238135,-440.0,0.00021095,4]
[365652664,1749820238144,-440.0,0.00021095,4]
[365652665,1749820238153,-440.0,0.00021095,4]
[365652666,1749820238163,-460.0,0.00021095,4]
[365652667,1749820238172,-440.0,0.00021095,4]
[365652668,1749820238181,-975.47,0.00021095,4]
[365652669,1749820238190,-430.0,0.00021095,4]
[365652670,1749820238200,-460.0,0.00021095,4]
[365652671,1749820238209,-440.0,0.00021095,4]
[365652672,1749820238219,-1506.8,0.00021095,4]
[365652673,1749820238228,-440.0,0.00021095,4]
[365652674,1749820238238,-440.0,0.00021095,4]
[365652675,1749820238247,-440.0,0.00021095,4]
[365652676,1749820238256,-460.0,0.00021095,4]
[365652677,1749820238266,-440.0,0.00021095,4]
[365652678,1749820238275,-492.0,0.00021095,4]
[365652679,1749820238285,-460.0,0.00021095,4]
[365652680,1749820238295,-440.0,0.00021095,4]
[365652681,1749820238305,-440.0,0.00021095,4]
[365652682,1749820238315,-440.0,0.00021095,4]
[365652683,1749820238324,-445.79472355,0.00021095,4]
[365652684,1749820238333,-500.0,0.00021095,4]
[365652686,1749820238343,-270.7,0.00021272,2]
[365652688,1749820238353,-500.0,0.00021367,4]
[365652690,1749820238365,-500.0,0.00021368,4]
[365652691,1749820238374,-390.49226352,0.00021369,4]
[365652693,1749820238383,-460.0,0.00021369,4]
[365652695,1749820238393,-420.0,0.00021369,4]
[365652697,1749820238402,-460.0,0.00021369,4]
[365652699,1749820238412,-460.0,0.00021369,4]
[365652701,1749820238421,-400.0,0.00021369,4]
[365652703,1749820238430,-170.17195993,0.00021369,4]
[365652705,1749820238440,-460.0,0.00021369,4]
[365652707,1749820238449,-440.0,0.00021369,4]
[365652709,1749820238459,-270.0,0.00021369,4]
[365652711,1749820238469,-440.0,0.00021369,4]
[365652713,1749820238479,-460.0,0.00021369,4]
[365652715,1749820238488,-500.0,0.00021369,4]
[365652717,1749820238497,-460.0,0.00021369,2]
[365652719,1749820238507,-460.0,0.00021369,4]
[365652721,1749820238517,-379.45451582,0.00021369,4]
[365652723,1749820238527,-833.33,0.00021369,4]
[365652725,1749820238536,-460.0,0.00021369,4]
[365652727,1749820238545,-460.0,0.00021369,4]
[365652729,1749820238554,-460.0,0.00021369,4]
[365652731,1749820238564,-460.0,0.00021369,4]
[365652733,1749820238573,-420.0,0.00021369,4]
[365652735,1749820238583,-460.0,0.00021369,4]
[365652737,1749820238592,-1200.66,0.00021369,4]
[365652739,1749820238601,-968.36,0.00021369,4]
[365652741,1749820238612,-565.31,0.00021369,4]
[365652742,1749820238622,-1196.02,0.00021369,4]
[365652744,1749820238631,-460.0,0.00021369,4]
[365652746,1749820238641,-460.0,0.00021369,4]
[365652748,1749820238651,-460.0,0.00021369,4]
[365652750,1749820238660,-420.0,0.00021369,4]
[365652752,1749820238669,-420.0,0.00021369,4]
[365652754,1749820238678,-440.0,0.00021369,4]
[365652756,1749820238688,-460.0,0.00021369,4]
[365652757,1749820238697,-460.0,0.00021369,4]
[365652758,1749820238707,-460.0,0.00021369,4]
[365652759,1749820238716,-420.0,0.00021369,4]
[365652761,1749820238726,-579.04,0.00021369,4]
[365652763,1749820238736,-601.81,0.00021369,4]
[365652765,1749820238745,-547.81,0.00021369,4]
[365652767,1749820238755,-420.0,0.00021369,4]
[365652769,1749820238764,-460.0,0.00021369,4]
[365652771,1749820238774,-420.0,0.00021369,4]
[365652773,1749820238783,-460.0,0.00021369,4]
[365652775,1749820238793,-2427.65,0.00021369,4]
[365652777,1749820238803,-599.64,0.00021369,4]
[365652779,1749820238813,-755.79,0.00021369,4]
[365652781,1749820238822,-460.0,0.00021369,4]
[365652783,1749820238832,-460.0,0.00021369,4]
[365652785,1749820238841,-460.0,0.00021369,4]
[365652787,1749820238851,-460.0,0.00021369,4]
[365652789,1749820238861,-1943.53,0.00021369,4]
[365652791,1749820238870,-969.63,0.00021369,4]
[365652793,1749820238884,-460.0,0.00021369,4]
[365652794,1749820238893,-913.71,0.00021369,4]
[365652796,1749820238903,-420.0,0.00021369,4]
[365652798,1749820238912,-278.23263333,0.00021369,4]
[365652800,1749820238922,-460.0,0.00021369,4]
[365652802,1749820238932,-975.47,0.00021369,4]
[365652804,1749820238942,-460.0,0.00021369,4]
[365652806,1749820238951,-1506.8,0.00021369,4]
[365652808,1749820238962,-390.0,0.00021369,4]
[365652810,1749820238972,-492.0,0.00021369,4]
[365652812,1749820238981,-420.0,0.00021369,4]
[365652814,1749820238990,-420.0,0.0002159,2]
[365652816,1749820239000,-500.0,0.00021594,2]
[365652818,1749820239009,-500.0,0.00021621,2]
[365652820,1749820239019,-160.93039535,0.00021621,2]
[365652821,1749820239028,-1000.0,0.00021621,2]
[365652822,1749820239037,-1000.0,0.00021621,2]
[365652823,1749820239046,-500.0,0.00021621,2]
[365652824,1749820239057,-500.0,0.0002164,4]
[365652825,1749820239066,-500.0,0.00021642,3]
[365652826,1749820239075,-596.55287166,0.00021642,4]
[365652827,1749820239085,-440.0,0.00021643,4]
[365652828,1749820239094,-460.0,0.00021643,4]
[365652829,1749820239104,-440.0,0.00021643,4]
[365652830,1749820239115,-460.0,0.00021643,4]
[365652831,1749820239124,-460.0,0.00021643,4]
[365652832,1749820239134,-460.0,0.00021643,2]
[365652833,1749820239143,-460.0,0.00021643,4]
[365652834,1749820239153,-833.33,0.00021643,4]
[365652835,1749820239252,-460.0,0.00021643,4]
[365652836,1749820239262,-460.0,0.00021643,4]
[365652837,1749820239272,-460.0,0.00021643,4]
[365652838,1749820239281,-440.0,0.00021643,4]
[365652839,1749820239291,-1200.66,0.00021643,4]
[365652840,1749820239301,-968.36,0.00021643,4]
[365652841,1749820239311,-565.31,0.00021643,4]
[365652842,1749820239321,-1196.02,0.00021643,4]
[365652843,1749820239331,-460.0,0.00021643,4]
[365652844,1749820239341,-420.0,0.00021643,4]
[365652845,1749820239351,-460.0,0.00021643,4]
[365652846,1749820239362,-460.0,0.00021643,4]
[365652847,1749820239371,-460.0,0.00021643,4]
[365652848,1749820239380,-460.0,0.00021643,4]
[365652849,1749820239390,-579.04,0.00021643,4]
[365652850,1749820239400,-601.81,0.00021643,4]
[365652851,1749820239410,-547.81,0.00021643,4]
[365652852,1749820239420,-460.0,0.00021643,4]
[365652853,1749820239429,-420.0,0.00021643,4]
[365652854,1749820239439,-2427.65,0.00021643,4]
[365652855,1749820239448,-599.64,0.00021643,4]
[365652856,1749820239458,-755.79,0.00021643,4]
[365652857,1749820239467,-460.0,0.00021643,4]
[365652858,1749820239476,-460.0,0.00021643,4]
[365652859,1749820239486,-460.0,0.00021643,4]
[365652860,1749820239495,-460.0,0.00021643,4]
[365652861,1749820239504,-1943.53,0.00021643,4]
[365652862,1749820239514,-969.63,0.00021643,4]
[365652863,1749820239523,-460.0,0.00021643,4]
[365652864,1749820239532,-913.71,0.00021643,4]
[365652866,1749820239542,-460.0,0.00021643,4]
[365652867,1749820239551,-975.47,0.00021643,4]
[365652868,1749820239561,-460.0,0.00021643,4]
[365652869,1749820239570,-1506.8,0.00021643,4]
[365652870,1749820239580,-492.0,0.00021643,4]
[365652871,1749820239589,-1045.51686988,0.00021653,2]
[365652873,1749820239599,-1680.0,0.00021694,2]
[365652874,1749820239608,-500.0,0.00021813,2]
[365652875,1749820239618,-512.18749651,0.00021818,2]
[365652876,1749820239628,-460.0,0.00021917,4]
[365652877,1749820239637,-460.0,0.00021917,4]
[365652878,1749820239647,-500.0,0.00021917,4]
[365652879,1749820239656,-460.0,0.00021917,4]
[365652880,1749820239666,-460.0,0.00021917,2]
[365652881,1749820239676,-460.0,0.00021917,4]
[365652882,1749820239685,-833.33,0.00021917,4]
[365652883,1749820239694,-460.0,0.00021917,4]
[365652884,1749820239704,-460.0,0.00021917,4]
[365652885,1749820239714,-469.94,0.00021917,4]
[365652886,1749820239724,-1200.66,0.00021917,4]
[365652887,1749820239734,-968.36,0.00021917,4]
[365652888,1749820239743,-565.31,0.00021917,4]
[365652889,1749820239753,-1196.02,0.00021917,4]
[365652891,1749820239763,-460.0,0.00021917,4]
[365652893,1749820239772,-460.0,0.00021917,4]
[365652895,1749820239782,-460.0,0.00021917,4]
[365652897,1749820239791,-460.0,0.00021917,4]
[365652899,1749820239801,-460.0,0.00021917,4]
[365652901,1749820239811,-579.04,0.00021917,4]
[365652903,1749820239821,-601.81,0.00021917,4]
[365652905,1749820239831,-547.81,0.00021917,4]
[365652907,1749820239840,-460.0,0.00021917,4]
[365652909,1749820239850,-2427.65,0.00021917,4]
[365652911,1749820239859,-599.64,0.00021917,4]
[365652913,1749820239870,-755.79,0.00021917,4]
[365652915,1749820239882,-163.83300385,0.00021917,4]
[365652916,1749820239891,-550.65258183,0.00021917,4]
[365652919,1749820239902,-460.0,0.00021917,4]
[365652921,1749820239911,-460.0,0.00021917,4]
[365652923,1749820239922,-1943.53,0.00021917,4]
[365652925,1749820239932,-969.63,0.00021917,4]
[365652927,1749820239942,-42.23901258,0.00021917,4]
[365652934,1749820239999,-417.76098742,0.00021917,4]
[365652936,1749820240008,-913.71,0.00021917,4]
[365652937,1749820240019,-460.0,0.00021917,4]
[365652939,1749820240029,-975.47,0.00021917,4]
[365652942,1749820240038,-380.0,0.00021917,4]
[365652943,1749820240048,-1506.8,0.00021917,4]
[365652945,1749820240058,-492.0,0.00021917,4]
[365652948,1749820240067,-5887.0,0.00021919,2]
[365652950,1749820240078,-1000.0,0.00022,22]
[365652951,1749820240087,-99.85302444,0.00022063,2]
[365652962,1749820240176,-460.0,0.00021095,4]
[365652964,1749820240186,-559.64,0.00021369,4]
[365652966,1749820240195,-60.14697556,0.00022063,2]
[365652968,1749820240205,-229.78555783,0.00022063,2]
[365652970,1749820240214,-213.24139183,0.00022063,2]
[365652972,1749820240223,-749.13502364,0.00022063,2]
[365652974,1749820240235,-1375.68947299,0.00022063,2]
[365652976,1749820240247,-10406.2021971,0.00022063,2]
[365652978,1749820240257,-424.32678023,0.00022063,2]
[365652980,1749820240266,-160.0,0.00022063,2]
[365652982,1749820240276,-160.0,0.00022063,2]
[365652984,1749820240285,-835.28007164,0.00022063,2]
[365652986,1749820240295,-844.94977992,0.00022063,2]
[365652988,1749820240304,-160.0,0.00022063,2]
[365652991,1749820240314,-160.0,0.00022063,2]
[365652992,1749820240324,-653.0,0.00022155,2]
[365652994,1749820240333,-2160.0,0.00022155,2]
[365652997,1749820240343,-405.0,0.00022155,2]
[365652999,1749820240353,-1000.0,0.00022168,2]
[365653000,1749820240363,-460.0,0.00022191,4]
[365653003,1749820240373,-264.16876526,0.00022191,4]
[365653005,1749820240383,-540.58,0.00022191,4]
[365653007,1749820240393,-460.0,0.00022191,2]
[365653009,1749820240403,-460.0,0.00022191,4]
[365653011,1749820240412,-833.33,0.00022191,4]
[365653013,1749820240422,-306.27,0.00022191,4]
[365653015,1749820240432,-460.0,0.00022191,4]
[365653017,1749820240442,-1200.66,0.00022191,4]
[365653019,1749820240452,-968.36,0.00022191,4]
[365653021,1749820240461,-565.31,0.00022191,4]
[365653023,1749820240471,-1196.02,0.00022191,4]
[365653025,1749820240481,-460.0,0.00022191,4]
[365653027,1749820240490,-460.0,0.00022191,4]
[365653029,1749820240500,-460.0,0.00022191,4]
[365653031,1749820240510,-458.82785527,0.00022191,4]
[365653033,1749820240520,-460.0,0.00022191,4]
[365653035,1749820240530,-579.04,0.00022191,4]
[365653037,1749820240539,-601.81,0.00022191,4]
[365653039,1749820240550,-547.81,0.00022191,4]
[365653041,1749820240560,-460.0,0.00022191,4]
[365653043,1749820240570,-2427.65,0.00022191,4]
[365653045,1749820240581,-599.64,0.00022191,4]
[365653047,1749820240590,-755.79,0.00022191,4]
[365653049,1749820240599,-460.0,0.00022191,4]
[365653051,1749820240608,-460.0,0.00022191,4]
[365653053,1749820240619,-1943.53,0.00022191,4]
[365653055,1749820240630,-969.63,0.00022191,4]
[365653057,1749820240639,-460.0,0.00022191,4]
[365653059,1749820240648,-913.71,0.00022191,4]
[365653061,1749820240658,-460.0,0.00022191,4]
[365653063,1749820240667,-975.47,0.00022191,4]
[365653065,1749820240677,-1506.8,0.00022191,4]
[365653067,1749820240686,-492.0,0.00022191,4]
[365653069,1749820240696,-1045.51686988,0.00022311,2]
[365653071,1749820240705,-1144.0,0.00022336,2]
[365653073,1749820240715,-153.0,0.00022432,2]
[365653075,1749820240724,-153.0,0.00022432,2]
[365653077,1749820240733,-153.0,0.00022432,2]
[365653079,1749820240743,-153.0,0.00022432,2]
[365653081,1749820240752,-153.0,0.00022433,2]
[365653083,1749820240762,-153.0,0.00022433,2]
[365653085,1749820240771,-153.0,0.00022436,2]
[365653087,1749820240781,-153.0,0.00022437,2]
[365653089,1749820240791,-5887.0,0.00022448,2]
[365653091,1749820240800,-3400.44,0.00022455,3]
[365653093,1749820240809,-1700.22,0.00022455,3]
[365653095,1749820240819,-850.12,0.00022455,3]
[365653098,1749820240828,-425.06,0.00022455,3]
[365653099,1749820240838,-12531.02669373,0.00022455,3]
[365653100,1749820240847,-844.94977992,0.00022455,3]
[365653102,1749820240857,-162.73,0.00022464,2]
[365653104,1749820240868,-440.0,0.00022465,4]
[365653106,1749820240881,-460.0,0.00022465,2]
[365653108,1749820240892,-460.0,0.00022465,4]
[365653110,1749820240901,-833.33,0.00022465,4]
[365653112,1749820240911,-460.0,0.00022465,4]
[365653114,1749820240920,-1200.66,0.00022465,4]
[365653116,1749820240931,-968.36,0.00022465,4]
[365653118,1749820240941,-565.31,0.00022465,4]
[365653120,1749820240952,-1196.02,0.00022465,4]
[365653122,1749820240962,-460.0,0.00022465,4]
[365653124,1749820240971,-460.0,0.00022465,4]
[365653126,1749820240980,-460.0,0.00022465,4]
[365653128,1749820240990,-460.0,0.00022465,4]
[365653129,1749820240999,-579.04,0.00022465,4]
[365653130,1749820241008,-601.81,0.00022465,4]
[365653131,1749820241018,-547.81,0.00022465,4]
[365653132,1749820241027,-460.0,0.00022465,4]
[365653133,1749820241037,-2427.65,0.00022465,4]
[365653134,1749820241047,-755.79,0.00022465,4]
[365653135,1749820241056,-599.64,0.00022465,4]
[365653136,1749820241065,-460.0,0.00022465,4]
[365653137,1749820241074,-460.0,0.00022465,4]
[365653138,1749820241083,-1943.53,0.00022465,4]
[365653139,1749820241092,-969.63,0.00022465,4]
[365653140,1749820241101,-460.0,0.00022465,4]
[365653141,1749820241111,-913.71,0.00022465,4]
[365653142,1749820241122,-460.0,0.00022465,4]
[365653143,1749820241131,-975.47,0.00022465,4]
[365653144,1749820241141,-1506.8,0.00022465,4]
[365653145,1749820241150,-492.0,0.00022465,4]
[365653146,1749820241159,-500.0,0.000225,2]
[365653147,1749820241168,-500.0,0.000225,2]
[365653148,1749820241178,-501.04561365,0.000225,2]
[365653149,1749820241187,-653.0,0.00022502,2]
[365653150,1749820241197,-420.0,0.00022544,2]
[365653151,1749820241206,-1144.0,0.00022555,2]
[365653152,1749820241215,-1688.0,0.00022599,2]
[365653153,1749820241224,-500.0,0.00022599,2]
[365653154,1749820241233,-500.0,0.00022599,2]
[365653155,1749820241243,-5000.0,0.00022599,2]
[365653156,1749820241253,-176.41705849,0.00022599,2]
[365653157,1749820241262,-500.0,0.00022599,2]
[365653158,1749820241271,-1658.07606603,0.00022599,2]
[365653159,1749820241281,-500.0,0.00022599,2]
[365653160,1749820241291,-500.0,0.00022599,2]
[365653161,1749820241300,-500.0,0.00022599,2]
[365653162,1749820241310,-500.0,0.00022599,2]
[365653163,1749820241319,-500.0,0.00022599,2]
[365653164,1749820241328,-500.0,0.00022599,2]
[365653165,1749820241337,-500.0,0.00022599,2]
[365653166,1749820241347,-500.0,0.00022599,2]
[365653167,1749820241357,-500.0,0.00022599,2]
[365653168,1749820241369,-207.4,0.00022599,2]
[365653169,1749820241378,-500.0,0.00022599,2]
[365653170,1749820241388,-500.0,0.00022599,2]
[365653171,1749820241398,-500.0,0.00022599,2]
[365653172,1749820241407,-500.0,0.00022599,2]
[365653173,1749820241417,-1806.51976404,0.00022654,2]
[365653174,1749820241427,-3000.0,0.000227,2]
[365653175,1749820241436,-5887.0,0.00022704,2]
[365653176,1749820241446,-3000.0,0.0002271,2]
[365653177,1749820241456,-520.0,0.00022714,2]
[365653178,1749820241466,-3000.0,0.0002272,2]
[365653179,1749820241572,-3000.0,0.0002273,2]
[365653180,1749820241583,-460.0,0.00022739,2]
[365653181,1749820241593,-460.0,0.00022739,4]
[365653182,1749820241603,-833.33,0.00022739,4]
[365653183,1749820241612,-460.0,0.00022739,4]
[365653184,1749820241624,-1200.66,0.00022739,4]
[365653185,1749820241634,-968.36,0.00022739,4]
[365653187,1749820241643,-565.31,0.00022739,4]
[365653189,1749820241653,-1196.02,0.00022739,4]
[365653191,1749820241662,-460.0,0.00022739,4]
[365653193,1749820241672,-460.0,0.00022739,4]
[365653195,1749820241681,-460.0,0.00022739,4]
[365653197,1749820241691,-460.0,0.00022739,4]
[365653199,1749820241702,-579.04,0.00022739,4]
[365653201,1749820241711,-601.81,0.00022739,4]
[365653203,1749820241721,-547.81,0.00022739,4]
[365653205,1749820241730,-480.0,0.00022739,4]
[365653207,1749820241740,-2427.65,0.00022739,4]
[365653209,1749820241749,-599.64,0.00022739,4]
[365653211,1749820241759,-755.79,0.00022739,4]
[365653213,1749820241769,-195.06,0.00022739,4]
[365653215,1749820241779,-460.0,0.00022739,4]
[365653217,1749820241789,-1943.53,0.00022739,4]
[365653219,1749820241799,-969.63,0.00022739,4]
[365653221,1749820241809,-460.0,0.00022739,4]
[365653223,1749820241818,-913.71,0.00022739,4]
[365653225,1749820241828,-460.0,0.00022739,4]
[365653227,1749820241838,-975.47,0.00022739,4]
[365653229,1749820241848,-1506.8,0.00022739,4]
[365653231,1749820241858,-492.0,0.00022739,4]
[365653233,1749820241869,-3000.0,0.0002274,2]
[365653235,1749820241881,-3000.0,0.0002275,2]
[365653237,1749820241891,-3000.0,0.0002276,2]
[365653239,1749820241901,-502.18762208,0.00022767,2]
[365653241,1749820241910,-500.0,0.00022767,2]
[365653243,1749820241920,-3000.0,0.0002277,2]
[365653245,1749820241929,-3000.0,0.0002278,2]
[365653247,1749820241938,-501.89008847,0.00022789,2]
[365653249,1749820241948,-500.0,0.00022789,2]
[365653251,1749820241960,-3000.0,0.0002279,2]
[365653253,1749820241971,-3000.0,0.000228,2]
[365653255,1749820241981,-3000.0,0.0002281,2]
[365653257,1749820241991,-500.0,0.00022811,2]
[365653259,1749820242001,-500.99252369,0.00022811,2]
[365653261,1749820242011,-500.0,0.00022811,2]
[365653263,1749820242021,-500.0,0.00022811,2]
[365653265,1749820242031,-500.0,0.00022811,2]
[365653267,1749820242041,-600.0,0.00022811,2]
[365653269,1749820242051,-3000.0,0.0002282,2]
[365653271,1749820242060,-3000.0,0.0002283,2]